bitfinex/quotes_ETHUSD_20250411
["timestamp","ask_amount","ask_price","bid_price","bid_amount"]
[1744358686942,12.91187,1549.0,1548.6,12.91454]
[1744358687113,6.45629,1548.9,1548.5,6.4578]
[1744358687315,6.4567,1548.8,1548.5,6.4578]
[1744358687651,6.4567,1548.8,1548.4,6.45825]
[1744358687949,12.91355,1548.8,1548.5,6.45779]
[1744358688131,12.91355,1548.8,1548.3,1.45203444]
[1744358688132,6.45724,1548.7,1548.3,7.91053444]
[1744358688449,6.45773,1548.6,1548.3,7.42466]
[1744358688636,0.55,1549.1,1548.4,6.45827]
[1744358688837,7.00537,1549.1,1548.7,12.91367]
[1744358689241,13.46094,1549.1,1548.7,12.91354]
[1744358689553,0.55,1549.1,1548.8,6.45643]
[1744358690449,7.00552,1549.1,1548.8,6.45643]
[1744358690647,13.46109,1549.1,1548.7,13.40733962]
[1744358690844,7.00552,1549.1,1548.8,6.45656]
[1744358691148,0.55,1549.1,1548.9,6.45604]
[1744358691748,0.55,1549.1,1548.8,7.79722196]
[1744358691950,7.00546,1549.1,1548.8,7.79722196]
[1744358692156,7.00546,1549.1,1548.8,6.4566]
[1744358692448,0.55,1549.1,1548.6,0.9726]
[1744358692627,0.55,1549.1,1548.6,7.42995]
[1744358692628,6.45646,1548.9,1548.6,7.42995]
[1744358692832,6.45646,1548.9,1548.7,0.6002484]
[1744358693052,0.55,1549.1,1548.8,6.45642]
[1744358693222,0.55,1549.1,1548.8,12.9129]
[1744358693422,7.00546,1549.1,1548.8,6.45642]
[1744358693641,13.46113,1549.1,1548.7,7.75294576]
[1744358693845,6.45608,1549.0,1548.8,0.36030071]
[1744358694033,6.45619,1548.9,1548.8,0.36030071]
[1744358694552,6.45619,1548.9,1548.6,6.81773071]
[1744358694726,6.45619,1548.9,1548.6,6.81759071]
[1744358694926,6.45619,1548.9,1548.6,0.36030071]
[1744358695235,6.45619,1548.9,1548.7,0.36030071]
[1744358695430,0.55,1549.1,1548.7,0.36030071]
[1744358696154,0.905,1549.1,1548.8,0.36030071]
[1744358696355,0.55,1549.1,1548.8,0.36030071]
[1744358696942,0.55,1549.1,1548.9,0.36030071]
[1744358697427,0.55,1549.0,1548.9,0.36030071]
[1744358697627,7.006,1549.0,1548.9,0.36030071]
[1744358697827,6.45758,1548.6,1548.4,0.36030071]
[1744358698027,0.55,1549.1,1548.9,6.45589]
[1744358698257,0.55,1549.1,1549.0,10.40277]
[1744358698458,7.93358,1549.8,1549.3,6.45436]
[1744358698662,6.45296,1549.7,1549.3,6.45429]
[1744358698959,7.93358,1549.8,1549.4,6.81401071]
[1744358698960,0.55,1549.8,1549.4,6.81401071]
[1744358699127,0.55,1549.8,1549.4,6.81437071]
[1744358699330,0.55,1549.8,1549.5,6.45361]
[1744358699638,0.55,1549.8,1549.5,6.45346]
[1744358699840,0.55,1549.8,1549.7,6.45286]
[1744358700030,0.55,1549.8,1549.7,7.23607607]
[1744358700473,0.55,1549.8,1549.7,0.78321607]
[1744358700647,0.55,1549.8,1549.7,0.36030071]
[1744358700648,7.00244,1549.8,1549.7,0.36030071]
[1744358700964,0.55,1549.8,1549.7,0.36030071]
[1744358701273,0.55,1549.8,1549.7,8.31136071]
[1744358701476,0.55,1549.8,1549.7,11.31136071]
[1744358701663,0.395124,1549.9,1549.8,9.45244]
[1744358701833,0.395124,1549.9,1549.8,12.07882007]
[1744358702029,0.395124,1549.9,1549.8,11.52882007]
[1744358702281,0.1,1550.4,1550.3,6.45036]
[1744358703132,0.1,1550.4,1550.3,7.89418106]
[1744358703332,0.1,1550.4,1550.3,8.25448177]
[1744358703558,0.1,1550.4,1550.3,9.54693243]
[1744358703770,0.1,1550.4,1550.3,9.05361137]
[1744358704342,6.44643,1551.3,1550.3,16.5305332]
[1744358704549,0.945124,1551.5,1550.9,6.44754]
[1744358704846,6.4958,1551.4,1550.6,3.0]
[1744358705034,6.49583,1551.4,1550.7,3.0]
[1744358705240,0.05,1551.4,1551.2,6.44635]
[1744358705465,0.05,1551.4,1551.3,6.4462]
[1744358705636,0.05,1551.4,1551.1,6.447]
[1744358705833,0.05,1551.4,1551.2,6.44643]
[1744358706155,0.05,1551.4,1551.2,6.44638]
[1744358706356,0.05,1551.4,1551.1,6.44703]
[1744358706357,0.05,1551.4,1551.1,6.44702]
[1744358706549,0.945124,1551.5,1551.4,7.45659]
[1744358706743,0.945124,1551.5,1551.4,11.00659]
[1744358706947,0.945124,1551.5,1551.4,10.45659]
[1744358707341,0.880604,1551.5,1551.4,10.45659]
[1744358708172,0.880604,1551.5,1551.4,11.00659]
[1744358708331,0.05,1552.4,1552.0,6.44328]
[1744358708534,0.05,1552.4,1552.1,6.44282]
[1744358708747,0.05,1552.4,1552.0,6.44327]
[1744358708942,0.05,1552.4,1551.9,0.9433]
[1744358709144,0.05,1552.4,1552.3,10.40595]
[1744358709344,4e-06,1553.0,1552.9,6.43956]
[1744358709565,4e-06,1553.0,1552.9,0.9639]
[1744358709738,4e-06,1553.0,1552.9,10.95346]
[1744358709943,0.05,1553.4,1553.3,6.4379]
[1744358710269,0.01361357,1553.7,1553.6,7.45066]
[1744358710441,0.01361357,1553.7,1553.6,10.45066]
[1744358710984,0.01361357,1553.7,1553.6,7.45066]
[1744358711143,3.57e-06,1553.7,1553.6,12.290103]
[1744358711477,3.57e-06,1553.7,1553.6,15.47794183]
[1744358711687,0.05,1554.4,1554.2,6.43385]
[1744358711888,0.05,1554.4,1554.1,6.43458]
[1744358712050,0.05,1554.4,1554.0,6.43469]
[1744358712427,0.05,1554.4,1553.6,7.45041]
[1744358712428,20.24634,1554.4,1553.6,7.45041]
[1744358712554,20.24634,1554.4,1553.6,7.45033]
[1744358712555,6.43438,1554.2,1553.6,7.45033]
[1744358712753,2.024634,1554.3,1553.7,6.43604]
[1744358712941,1.0758,1554.4,1553.7,3.0]
[1744358713142,1.0758,1554.4,1553.6,15.47792183]
[1744358713143,0.05,1554.4,1553.6,15.47792183]
[1744358713373,0.05,1554.4,1554.2,6.43404]
[1744358713597,0.05,1554.4,1554.2,6.43387]
[1744358713892,0.05,1554.4,1554.3,9.43376]
[1744358714091,0.05,1554.4,1553.9,0.9482]
[1744358714392,7.45647,1554.4,1553.9,6.43523]
[1744358714545,7.45647,1554.4,1553.6,1.0227]
[1744358714546,1.738963,1554.4,1553.6,1.0227]
[1744358714744,0.05,1554.4,1554.0,6.43471]
[1744358714939,0.05,1554.4,1554.0,12.86948]
[1744358715187,0.05,1554.4,1554.1,6.43441]
[1744358715387,0.05,1554.4,1554.2,6.43413]
[1744358715555,0.05,1554.4,1554.3,9.43376]
[1744358715753,0.05,1554.4,1554.3,6.43376]
[1744358716056,1e-05,1554.4,1554.3,11.372819]
[1744358716256,1e-05,1554.4,1554.3,9.43376]
[1744358716478,0.395124,1554.6,1554.5,6.43293]
[1744358716804,0.395124,1554.6,1554.5,9.43293]
[1744358717295,3.9731,1555.3,1554.4,6.43321]
[1744358717474,0.9731,1554.8,1554.2,6.43416]
[1744358717646,13.6971,1554.8,1554.3,6.43376]
[1744358717843,15.06681,1554.8,1554.4,6.43323]
[1744358718048,13.6971,1554.8,1554.2,6.43413]
[1744358718448,13.6971,1554.8,1554.2,6.43392]
[1744358718653,13.6971,1554.8,1554.3,6.43375]
[1744358718883,13.6971,1554.8,1554.3,6.43371]
[1744358718884,6.43241,1554.7,1554.3,6.43371]
[1744358719095,6.43241,1554.7,1554.2,6.43416]
[1744358719295,6.4327,1554.6,1554.1,6.4344]
[1744358719600,13.6971,1554.8,1554.4,6.43309]
[1744358719882,10.95664183,1555.4,1555.2,13.81804]
[1744358719883,0.05,1555.4,1555.2,13.81804]
[1744358720182,0.05,1555.4,1555.2,6.42979]
[1744358720380,0.05,1555.4,1555.2,12.85966]
[1744358720584,6.42964,1555.3,1554.8,6.43142]
[1744358720752,0.9839,1555.4,1555.0,6.43071]
[1744358720953,6.43021,1555.2,1554.7,6.43186]
[1744358721193,6.42995,1555.3,1554.8,6.43152]
[1744358721395,0.05,1555.4,1554.9,6.43097]
[1744358721549,0.05,1555.4,1555.2,6.42978]
[1744358721991,0.05,1555.4,1555.3,6.42962]
[1744358722530,0.05,1555.4,1555.3,10.81803]
[1744358722697,0.05,1555.4,1555.3,9.42962]
[1744358722900,0.05,1555.4,1555.1,10.90766183]
[1744358722901,0.05,1555.4,1555.1,6.43038]
[1744358723084,0.05,1555.4,1555.3,6.42962]
[1744358723431,1.2468804,1556.0,1555.9,6.42714]
[1744358723596,1.2468804,1556.0,1555.9,7.39514]
[1744358723597,0.2979804,1556.0,1555.9,7.39514]
[1744358723796,0.2979804,1556.0,1555.9,9.42714]
[1744358724332,0.2979804,1556.0,1555.7,6.42792]
[1744358724535,0.2979804,1556.0,1555.9,6.42714]
[1744358724720,0.2979804,1556.0,1555.7,6.42774]
[1744358725032,0.2979804,1556.0,1555.6,0.49001324]
[1744358725331,0.2979804,1556.0,1555.9,6.42714]
[1744358725533,0.2979804,1556.0,1555.7,3.0]
[1744358725534,0.2979804,1556.0,1555.7,6.42765]
[1744358725839,0.2979804,1556.0,1555.5,10.87477697]
[1744358725840,6.7247104,1556.0,1555.5,10.39658]
[1744358726043,6.7247504,1556.0,1555.2,7.38789]
[1744358726339,0.05,1556.4,1555.9,6.42688]
[1744358726549,0.05,1556.4,1555.9,12.85378]
[1744358726725,10.90000183,1557.0,1555.7,3.0]
[1744358726726,0.972,1557.6,1556.4,4.47728183]
[1744358726922,0.972,1557.6,1556.8,6.42306]
[1744358727288,0.972,1557.6,1556.8,6.42334]
[1744358727507,0.4460181,1557.7,1557.0,3.0]
[1744358727706,0.05,1559.4,1558.6,6.41582]
[1744358727959,0.33388476,1559.2,1558.7,0.9571]
[1744358728109,2.1e-06,1558.9,1558.8,9.96519]
[1744358728304,0.33388476,1559.2,1559.1,6.41395]
[1744358728305,6.86e-06,1559.2,1559.1,6.41395]
[1744358728657,0.05,1559.4,1559.3,6.41313]
[1744358729024,0.05,1559.4,1559.0,6.41404]
[1744358729222,0.05,1559.4,1558.8,9.41508]
[1744358729428,0.05,1559.4,1558.8,9.41494]
[1744358729612,0.05,1559.4,1558.9,6.41455]
[1744358729811,8.1e-06,1559.9,1559.3,6.41276]
[1744358730163,8.1e-06,1559.9,1559.8,9.41107]
[1744358730468,1e-05,1560.4,1560.3,6.40902]
[1744358730613,0.67745765,1562.2,1560.3,6.40902]
[1744358730614,13.57073457,1563.4,1562.1,3.0]
[1744358730973,0.05,1564.4,1563.7,6.39473]
[1744358731108,22.69579913,1565.2,1563.2,55.121]
[1744358731307,2.26957991,1565.1,1563.7,0.55]
[1744358731622,2.26957991,1565.1,1564.1,6.39324]
[1744358731840,2.26957991,1565.1,1563.3,2.78824059]
[1744358732059,0.05,1565.4,1563.3,0.9508]
[1744358732211,20.91757577,1565.8,1564.5,4.43247811]
[1744358732571,0.97420577,1565.8,1563.8,0.9942]
[1744358732761,5.77e-06,1565.8,1563.8,0.9942]
[1744358732965,0.2,1567.5,1565.0,0.9951]
[1744358733122,0.1086421,1567.6,1565.5,6.38765]
[1744358733123,6.38409,1566.4,1565.5,6.38765]
[1744358733459,6.38409,1566.4,1565.0,7.38483]
[1744358733460,0.993,1566.3,1565.0,0.9951]
[1744358733769,6.38202,1566.9,1565.0,6.38977]
[1744358734053,6.37876,1567.8,1565.0,6.38977]
[1744358734054,0.993,1567.7,1567.2,6.38079]
[1744358734260,0.005,1568.0,1567.3,6.38039]
[1744358734409,64.88653337,1568.3,1567.5,4.0225]
[1744358734609,8.1e-06,1568.4,1568.3,6.37633]
[1744358734917,8.1e-06,1568.4,1567.1,1.0225]
[1744358735352,8.1e-06,1568.4,1567.2,0.1166776]
[1744358735513,6.37877,1567.7,1566.0,12.28465183]
[1744358735858,1.1930081,1568.4,1566.5,6.38353]
[1744358735859,0.637877,1567.6,1566.5,6.38353]
[1744358736025,6.37995,1567.5,1566.1,6.50190955]
[1744358736220,6.37995,1567.5,1565.9,6.38592]
[1744358736221,6.37874,1567.8,1566.5,6.38326]
[1744358736429,6.3816,1567.1,1565.5,6.38762]
[1744358736737,0.993,1567.7,1565.3,1.08622225]
[1744358736945,0.993,1567.7,1566.0,6.38569]
[1744358737254,8.1e-06,1568.4,1568.3,6.37633]
[1744358737410,8.1e-06,1568.4,1567.7,6.71099964]
[1744358737411,8.1e-06,1568.4,1568.1,6.37706]
[1744358737659,8.1e-06,1568.4,1568.2,6.37672]
[1744358737857,8.1e-06,1568.4,1567.7,0.33237964]
[1744358738853,8.1e-06,1568.4,1568.3,7.12865183]
[1744358739057,0.05,1569.4,1569.1,5.89925183]
[1744358739256,1.0008,1571.4,1570.1,6.36861]
[1744358739464,1.0008,1571.4,1570.3,3.0]
[1744358739665,0.05,1571.4,1570.1,5.89925183]
[1744358739855,61.28676,1571.4,1569.7,5.89925183]
[1744358740076,6.36607,1570.9,1569.6,6.37079]
[1744358740281,6.36607,1570.9,1568.6,5.89925183]
[1744358740282,0.2,1570.4,1568.6,5.89925183]
[1744358740460,3.0,1570.2,1569.1,6.37297]
[1744358740661,6.3682,1570.3,1568.9,6.37361]
[1744358740851,6.12412,1570.3,1569.0,6.37337]
[1744358741051,6.12412,1570.3,1568.5,0.9407]
[1744358741297,1.0162,1569.8,1567.9,0.9865]
[1744358741522,3.0,1569.5,1567.9,0.9865]
[1744358741679,3.0,1569.5,1567.7,0.33237964]
[1744358741680,6.37348,1569.0,1567.7,0.33237964]
[1744358742011,3.0,1569.5,1567.7,0.33237964]
[1744358742012,6.3742,1568.9,1567.8,0.02]
[1744358742219,6.37673,1568.2,1568.1,0.05]
[1744358742422,3.0,1568.1,1567.7,0.33237964]
[1744358742575,3.0,1568.1,1566.6,1.01]
[1744358742779,60.69525183,1568.2,1566.1,6.435]
[1744358742780,9.3808,1567.2,1566.1,0.05]
[1744358742977,65.752947,1567.2,1566.1,0.05]
[1744358743182,54.796,1567.2,1566.1,0.05]
[1744358743411,6.38488,1566.2,1566.1,0.05]
[1744358743576,6.38121,1567.1,1566.1,0.05]
[1744358743577,12.27967183,1567.3,1566.1,0.05]
[1744358743782,6.38239,1566.9,1566.1,0.05]
[1744358743983,6.38248,1566.8,1566.1,0.05]
[1744358744302,6.38176,1567.0,1566.1,0.05]
[1744358744512,54.796,1567.6,1566.1,0.05]
[1744358744817,6.38118,1567.2,1566.1,3.05]
[1744358745024,0.638118,1567.1,1566.1,0.05]
[1744358745230,0.9897,1566.7,1566.1,0.05]
[1744358745528,6.38488,1566.2,1566.1,0.05]
[1744358745672,6.38773,1565.5,1565.3,0.2]
[1744358745873,6.38895,1565.2,1564.9,0.2]
[1744358746231,6.38895,1565.2,1564.7,0.2]
[1744358746523,6.38858,1565.3,1564.8,0.2]
[1744358746674,54.782,1565.7,1565.3,0.2]
[1744358746870,6.38732,1565.6,1564.7,0.2]
[1744358747107,6.38895,1565.2,1565.1,0.045]
[1744358747323,6.38773,1565.5,1565.1,0.045]
[1744358747488,6.38895,1565.2,1565.1,0.045]
[1744358748276,1.0106,1565.7,1565.1,1e-05]
[1744358748476,6.38796,1565.5,1565.1,1e-05]
[1744358748722,3.0,1565.8,1565.1,1e-05]
[1744358748932,1.0305,1566.3,1565.1,1e-05]
[1744358749142,6.38651,1565.8,1565.1,1e-05]
[1744358749334,6.38895,1565.2,1565.1,1e-05]
[1744358749833,6.38584,1566.0,1565.5,0.2]
[1744358749981,6.3839,1566.5,1565.5,0.2]
[1744358750181,6.38637,1565.9,1565.5,0.2]
[1744358750397,6.38729,1565.7,1565.2,0.2]
[1744358750597,6.38528,1566.1,1565.2,0.2]
[1744358750797,6.38895,1565.2,1565.1,1e-05]
[1744358751482,10.32705,1565.2,1565.1,1e-05]
[1744358751684,10.32705,1565.2,1564.1,0.05]
[1744358751685,6.39263,1564.3,1564.1,0.05]
[1744358751929,6.39208,1564.5,1564.1,0.25]
[1744358752134,6.39105,1564.7,1564.1,0.25]
[1744358752135,6.39304,1564.2,1564.1,0.05]
[1744358752281,5.59942461,1564.3,1564.1,1e-05]
[1744358752491,6.39304,1564.2,1564.1,1e-05]
[1744358752728,6.39672,1563.3,1563.1,0.25]
[1744358753087,6.39713,1563.2,1563.1,0.05]
[1744358753834,5.6020865,1563.3,1563.1,0.05]
[1744358753986,6.39536,1563.7,1563.1,0.05]
[1744358754189,0.9816,1565.8,1563.6,5.89925183]
[1744358754444,0.9816,1565.8,1564.8,0.2]
[1744358754598,0.9816,1565.8,1565.2,0.2]
[1744358754785,0.9816,1565.8,1564.8,0.2]
[1744358754786,6.38694,1565.7,1564.8,0.2]
[1744358754990,6.38925,1565.2,1564.8,0.2]
[1744358755314,6.38835,1565.4,1564.9,0.2]
[1744358755518,6.38918,1565.2,1564.8,0.2]
[1744358755837,6.38873,1565.3,1564.1,9.94345]
[1744358755838,6.39038,1564.9,1564.5,0.2]
[1744358755981,6.38773,1565.5,1564.6,0.2]
[1744358756185,0.05,1566.4,1565.0,0.2]
[1744358756186,60.69625183,1566.1,1565.0,0.2]
[1744358756434,60.69625183,1566.1,1564.6,6.39119]
[1744358756435,6.38771,1565.6,1564.9,0.2]
[1744358756629,6.38691,1565.7,1564.9,0.2]
[1744358756789,6.38797,1565.5,1564.9,0.2]
[1744358756990,6.38855,1565.3,1564.9,0.2]
[1744358757232,6.38694,1565.7,1564.7,0.2]
[1744358757233,6.38691,1565.7,1564.7,0.2]
[1744358757386,0.9816,1565.8,1564.9,0.2]
[1744358757587,6.38719,1565.7,1565.1,0.2]
[1744358757987,6.3868,1565.8,1565.1,0.2]
[1744358758227,6.38713,1565.7,1565.0,0.2]
[1744358758437,6.38616,1565.9,1564.9,0.2]
[1744358758733,6.38896,1565.2,1564.6,0.2]
[1744358758913,6.38873,1565.3,1564.9,0.2]
[1744358759117,6.38947,1565.1,1564.5,0.2]
[1744358759325,6.38877,1565.3,1564.6,0.2]
[1744358759485,6.39097,1564.8,1564.4,0.2]
[1744358759686,6.39065,1564.8,1564.3,0.2]
[1744358759890,6.39258,1564.4,1563.9,0.2]
[1744358760129,6.39018,1564.9,1564.0,0.2]
[1744358760327,6.39203,1564.5,1563.9,0.2]
[1744358760535,6.3914,1564.6,1563.7,0.2]
[1744358760736,6.39501,1563.8,1563.1,0.25]
[1744358761054,6.3961,1563.5,1563.1,0.05]
[1744358761347,6.39659,1563.4,1563.1,0.05]
[1744358761499,5.89925183,1563.7,1563.1,0.05]
[1744358761699,6.39638,1563.4,1563.1,0.05]
[1744358761951,0.9457,1563.6,1563.1,0.05]
[1744358762243,6.39713,1563.2,1563.1,0.05]
[1744358762561,3.0,1563.2,1562.1,0.25]
[1744358762757,6.40045,1562.4,1562.1,0.05]
[1744358762905,6.40122,1562.2,1562.1,0.05]
[1744358763255,6.40122,1562.2,1561.2,0.2]
[1744358763256,6.40335,1561.7,1561.2,0.2]
[1744358763545,1.280216,1562.2,1561.1,0.25]
[1744358763755,15.30049183,1562.2,1561.1,0.25]
[1744358763900,5.89925183,1561.9,1561.1,0.25]
[1744358764100,6.40532,1561.2,1561.1,0.05]
[1744358764846,54.813,1561.5,1561.1,0.05]
[1744358765055,12.30428183,1561.3,1560.5,0.709585]
[1744358765362,54.36463638,1561.5,1560.7,0.2]
[1744358765503,54.36463638,1561.5,1560.5,0.709585]
[1744358765504,6.40568,1561.2,1560.5,0.909585]
[1744358765701,6.40534,1561.2,1560.6,0.2]
[1744358765914,6.40524,1561.3,1560.7,0.2]
[1744358766149,6.40557,1561.2,1560.6,0.2]
[1744358766347,6.40535,1561.2,1560.5,0.709585]
[1744358766550,6.40637,1561.0,1560.5,0.709585]
[1744358766848,6.40532,1561.2,1560.6,0.2]
[1744358767151,3.0,1561.0,1560.5,0.709585]
[1744358767359,0.55,1560.9,1560.1,0.05]
[1744358767501,6.95779,1560.6,1559.3,6.41281]
[1744358767702,3.0,1560.3,1559.2,0.2]
[1744358767950,6.41092,1559.9,1559.2,6.61353]
[1744358768111,6.40925,1560.3,1559.6,0.2]
[1744358768316,69.83207558,1560.5,1559.1,6.46391]
[1744358768317,69.83207558,1560.5,1559.2,0.2]
[1744358768537,6.40956,1560.2,1559.7,0.2]
[1744358768740,6.40956,1560.2,1559.5,6.41209]
[1744358768741,14.28900658,1560.0,1559.1,0.05]
[1744358768906,7.87875658,1560.0,1559.1,0.05]
[1744358769111,11.42875658,1560.0,1559.1,0.05]
[1744358769367,6.41134,1559.8,1559.2,0.2]
[1744358769654,6.41227,1559.6,1559.1,0.05]
[1744358769806,6.41265,1559.5,1559.1,0.05]
[1744358770014,6.41354,1559.2,1559.1,0.05]
[1744358770210,54.881,1559.5,1558.7,0.5741082]
[1744358770559,6.41071,1559.9,1559.3,0.2]
[1744358770720,7.83187,1560.1,1559.1,0.2]
[1744358770927,6.41244,1559.5,1559.1,0.2]
[1744358771256,3.0,1559.7,1558.9,0.2]
[1744358771484,3.0,1559.5,1558.9,0.2]
[1744358771612,6.41421,1559.1,1558.7,0.3741082]
[1744358771815,6.41416,1559.1,1558.7,0.5741082]
[1744358772125,6.41436,1559.0,1558.2,0.2]
[1744358772435,6.41544,1558.8,1558.2,0.2]
[1744358772639,6.4156,1558.7,1558.4,0.2]
[1744358772838,6.41544,1558.8,1558.4,0.2]
[1744358773059,54.921,1559.4,1558.7,6.4156]
[1744358773356,6.41358,1559.2,1558.9,0.2]
[1744358773667,61.33403,1559.4,1559.0,0.2]
[1744358773954,54.921,1559.4,1558.7,0.2]
[1744358774121,3.55,1559.3,1558.4,0.2]
[1744358774327,6.41477,1558.9,1558.2,0.2]
[1744358774549,6.41677,1558.5,1558.2,0.2]
[1744358774836,6.41396,1559.1,1558.7,0.2]
[1744358775056,6.4115,1559.7,1558.8,0.2]
[1744358775291,6.41194,1559.6,1559.3,0.2]
[1744358775551,6.41066,1559.9,1559.4,0.2]
[1744358775720,6.41169,1559.7,1559.4,0.2]
[1744358775922,6.41097,1559.9,1559.4,0.2]
[1744358776142,6.41131,1559.8,1559.4,0.2]
[1744358776355,6.41066,1559.9,1559.3,0.2]
[1744358776661,6.41066,1559.9,1559.0,0.2]
[1744358776662,6.41395,1559.1,1559.0,0.2]
[1744358776810,6.41459,1559.0,1558.6,0.2]
[1744358777014,6.41229,1559.6,1559.3,0.2]
[1744358777236,0.783186,1559.9,1559.4,0.2]
[1744358777237,6.41169,1559.7,1559.4,0.2]
[1744358777444,6.41068,1559.9,1559.6,0.2]
[1744358777753,61.36252,1560.2,1559.3,0.2]
[1744358777754,6.41168,1559.7,1559.3,0.2]
[1744358777960,61.36252,1560.2,1559.6,0.2]
[1744358778166,6.136252,1560.1,1559.4,0.2]
[1744358778454,6.40861,1560.4,1559.5,0.2]
[1744358778655,6.40861,1560.4,1559.2,1.3429]
[1744358778656,6.41101,1559.9,1559.3,0.2]
[1744358778863,6.41101,1559.9,1559.2,1.3429]
[1744358778864,54.968,1560.3,1559.4,6.61243]
[1744358779026,6.41131,1559.8,1559.4,0.2]
[1744358779366,6.41168,1559.7,1559.4,0.2]
[1744358779665,70.514937,1560.3,1559.4,0.2]
[1744358779666,6.41212,1559.6,1559.4,0.2]
[1744358779956,3.0,1559.7,1559.0,0.2]
[1744358780157,6.41395,1559.1,1559.0,0.2]
[1744358780359,9.41272,1559.4,1558.8,0.2]
[1744358780512,6.41361,1559.2,1558.9,0.2]
[1744358780712,6.41095,1559.9,1559.6,0.2]
[1744358781063,6.41069,1559.9,1559.7,0.2]
[1744358781211,6.40984,1560.1,1559.9,0.2]
[1744358781412,6.40989,1560.1,1559.9,0.2]
[1744358781628,6.41129,1559.8,1559.5,0.2]
[1744358781830,6.41025,1560.0,1559.5,0.2]
[1744358782064,6.41183,1559.7,1559.0,1.6219]
[1744358782359,6.41395,1559.1,1559.0,0.2]
[1744358782513,6.41519,1558.8,1558.6,0.2]
[1744358782713,6.41488,1558.9,1558.3,0.2]
[1744358782714,6.41683,1558.4,1558.3,0.2]
[1744358782926,6.41766,1558.2,1558.1,0.05]
[1744358783755,7.86542,1559.1,1558.1,0.25]
[1744358783969,6.41538,1558.8,1558.6,0.2]
[1744358784129,6.41438,1559.0,1558.9,0.2]
[1744358784328,6.41398,1559.1,1558.4,0.2]
[1744358784686,6.41766,1558.2,1558.1,0.05]
[1744358784859,6.41724,1558.3,1558.1,0.05]
[1744358784860,6.41331,1559.3,1558.7,6.61526]
[1744358785035,6.41148,1559.7,1559.2,0.2]
[1744358785228,1.3474,1559.9,1559.6,0.2]
[1744358785428,6.40902,1560.3,1559.4,0.2]
[1744358785665,6.41293,1559.4,1559.3,0.2]
[1744358785964,6.41107,1559.8,1558.9,0.2]
[1744358786126,6.41244,1559.5,1559.3,0.2]
[1744358786326,6.41162,1559.7,1559.3,0.2]
[1744358786634,12.82411,1559.6,1559.4,0.2]
[1744358786836,7.050662,1560.2,1558.6,1.4467]
[1744358786837,12.82281,1559.8,1559.5,0.2]
[1744358787080,6.41088,1559.9,1559.7,0.2]
[1744358787375,6.41063,1560.0,1559.6,0.2]
[1744358787376,6.41035,1560.0,1559.6,0.2]
[1744358787528,6.41138,1559.8,1559.7,0.2]
[1744358787731,6.4119,1559.6,1559.5,0.2]
[1744358787977,15.35169852,1560.3,1559.5,0.2]
[1744358787978,6.4064,1561.0,1560.5,0.2]
[1744358788323,6.4064,1561.0,1560.0,6.41023]
[1744358788324,0.51568116,1561.9,1560.0,6.41023]
[1744358788325,6.40081,1562.3,1561.6,0.2]
[1744358788533,6.39978,1562.6,1562.3,0.2]
[1744358788690,6.39532,1563.7,1562.3,8.04921]
[1744358788691,6.44632,1563.4,1562.3,8.04921]
[1744358788874,6.44632,1563.4,1562.3,2.453321]
[1744358788875,5.99241852,1563.4,1562.3,2.453321]
[1744358789076,0.38392157,1562.4,1562.3,2.453321]
[1744358789319,0.05,1562.4,1562.3,1.6484]
[1744358789685,0.05,1562.4,1562.3,1.4484]
[1744358789891,0.05,1562.4,1562.3,0.2]
[1744358790124,0.05,1562.4,1562.2,0.2]
[1744358790481,0.05,1562.4,1562.3,0.2]
[1744358790681,0.05,1562.4,1562.3,6.60081]
[1744358790938,0.05,1562.4,1562.3,0.2]
[1744358791110,0.05,1563.4,1562.6,0.2]
[1744358791428,6.39887,1562.8,1562.3,0.2]
[1744358791579,6.4,1562.5,1562.4,0.2]
[1744358791781,6.39795,1563.0,1562.3,0.2]
[1744358791980,6.39795,1563.0,1562.1,0.2]
[1744358791981,6.40034,1562.5,1562.1,0.2]
[1744358792182,6.40034,1562.5,1562.3,0.2]
[1744358792381,54.983,1563.1,1562.5,0.2]
[1744358792629,54.983,1563.1,1561.9,3.55]
[1744358792630,61.38059,1563.1,1562.9,0.2]
[1744358792925,0.47420756,1564.2,1562.9,0.2]
[1744358792926,6.39672,1563.3,1562.9,0.2]
[1744358793078,0.644672,1563.3,1562.8,0.2]
[1744358793435,6.39994,1562.6,1562.3,1.4465]
[1744358793598,6.40068,1562.4,1561.9,0.2]
[1744358794001,6.40204,1562.0,1561.9,0.2]
[1744358794204,6.40154,1562.2,1561.7,0.2]
[1744358794533,0.55,1562.3,1561.4,0.2]
[1744358794740,3.0,1561.8,1561.2,0.2]
[1744358794884,6.40421,1561.5,1561.2,0.2]
[1744358795084,6.4045,1561.4,1560.8,0.2]
[1744358795406,6.4045,1561.4,1560.6,0.2]
[1744358795407,4.49045,1561.4,1560.6,0.2]
[1744358795605,6.40725,1560.8,1560.4,0.2]
[1744358795813,54.943,1560.7,1560.4,0.2]